Cogmind - Beta 14 @@@ ROGUE MODE // 2024.10.18 @ 21:02:08 Player: CogMan Result: Smashed by cave-in Performance ------------- Evolutions (0) 0 Regions Visited (1) 200 Robots Destroyed (13) 65 Value Destroyed (144) 144 Prototype IDs (0) 0 Alien Tech Used (0) 0 Bonus (0) 0 TOTAL SCORE: 409 Bonus ------- None Cogmind --------- Core Integrity 0/250 Matter 288/300 Energy 125/125 System Corruption 0% Temperature Cool (54) Movement Walking (120) Location -10/Materials Parts ------- > --- POWER (1) -------- Light Ion Engine > --- PROPULSION (2) --- Aluminum Leg Aluminum Leg > --- UTILITY (2) ------ Small Storage Unit Visual Processing Unit > --- WEAPON (2) ------- Medium Laser Improved Light Cannon > --- INVENTORY (8) ---- Aluminum Leg Visual Processing Unit Improved Terrain Scanner Light Assault Rifle Light Assault Rifle Grenade Launcher Peak State ------------ > --- POWER ------------ Light Ion Engine > --- PROPULSION ------- Aluminum Leg Aluminum Leg > --- UTILITY ---------- Small Storage Unit Improved Terrain Scanner > --- WEAPON ----------- Medium Laser Light Assault Rifle > --- INVENTORY -------- (None) [Rating: 9] Favorites ----------- Power Light Ion Engine Engine Light Ion Engine Propulsion Aluminum Leg Leg Aluminum Leg Utility Small Storage Unit Device Improved Terrain Scanner Storage Small Storage Unit Processor Visual Processing Unit Weapon Medium Laser Energy Gun Medium Laser Ballistic Gun Light Assault Rifle Ballistic Cannon Improved Light Cannon Launcher Grenade Launcher Build | -11 -10 ------- Run | Yrd Mat Slots Evolved . | . . Power . | . . Propulsion . | . . Utility . | . . Weapon . | . . Parts Attached 11 | 7 4 Power 1 | 1 . Engine 1 | 1 . Core . | . . Reactor . | . . Propulsion 3 | 2 1 Treads . | . . Leg 3 | 2 1 Wheel . | . . Hover . | . . Flight . | . . Utility 3 | 2 1 Device 1 | 1 . Storage 1 | 1 . Processor 1 | . 1 Hackware . | . . Protection . | . . Artifact . | . . Weapon 4 | 2 2 Energy Gun 1 | 1 . Energy Cannon . | . . Ballistic Gun 1 | 1 . Ballistic Cannon 1 | . 1 Launcher 1 | . 1 Special Weapon . | . . Impact Weapon . | . . Slashing Weapon . | . . Piercing Weapon . | . . Special Melee Weapon . | . . Unidentified Prototypes . | . . Parts Lost . | . . Power . | . . Propulsion . | . . Utility . | . . Weapon . | . . Highest Loss Streak . | . . To Critical Strikes . | . . Average Slot Usage (%) 100 | . 100 Engine 14 | . 14 Leg 28 | . 28 Storage 14 | . 14 Processor 14 | . 14 Energy Gun 14 | . 14 Ballistic Gun 8 | . 8 Ballistic Cannon 5 | . 5 Peak Build Rating 9 | 9 9 Average Rating 7 | 6 8 On Entrance 4 | . 9 Naked Turns . | . . Heaviest Build 14 | 12 14 Greatest Support 20 | 20 20 Greatest Overweight (x) . | . . Average Overweight (x) . | . . Largest Inventory Capacity 8 | 8 8 Average Capacity 7 | 7 8 Most Carried 6 | . 6 Average Carried 2 | . 4 Final Capacity 8 | 8 8 Final Carried 6 | . 6 Class Distribution -------------------- 100% | Mutant Dominant Class ---------------- Mutant | -10/Materials Resources | -11 -10 ----------- Run | Yrd Mat Matter Collected 393 | 280 113 Remotely . | . . Salvage Created 360 | 196 164 Parts 23 | 12 11 Haulers Intercepted 1 | . 1 Recyclers Shooed . | . . Parts Field Recycled . | . . Retrieved Matter . | . . Parts Self-Destructed . | . . Prevented . | . . Kills | -11 -10 ------- Run | Yrd Mat Combat Hostiles Destroyed 3 | . 3 Guns 1 | . 1 AOE 2 | . 2 Classes Destroyed 6 | 3 3 Worker 3 | 2 1 Builder 2 | . 2 Tunneler 3 | 3 . Hauler 1 | . 1 Recycler 1 | 1 . Grunt 3 | . 3 Best Kill Streak 7 | 3 7 Combat Bots Only 3 | . 3 Max Kills in Single Turn 2 | 1 2 Gunslinging . | . . Exploded 1 | . 1 Melee . | . . Uniques/NPCs Destroyed . | . . Combat | -11 -10 -------- Run | Yrd Mat Hostile Shots Fired 36 | . 36 Missed 12 | . 12 Damage Taken 577 | . 577 Core 267 | . 267 Absorbed by Shields . | . . Core Remaining (%) 100 | 100 . Volleys Fired 47 | 21 26 Largest 2 | 2 2 Hottest 89 | 70 89 Shots Fired 89 | 42 47 Gun 79 | 42 37 Cannon 7 | . 7 Launcher 3 | . 3 Special . | . . Kinetic 44 | 21 23 Thermal 42 | 21 21 Explosive 3 | . 3 Electromagnetic . | . . Robot Hit Streak 10 | 5 10 Robot Miss Streak 2 | 2 1 Penetration Max . | . . Secondary Targets . | . . Shots Hit Robots 57 | 27 30 Core Hits 24 | 10 14 Critical Kills . | . . Critical Parts Destroyed . | . . Critical Strikes 1 | 1 . Burn 1 | 1 . Melee Attacks . | . . Impact . | . . Slashing . | . . Piercing . | . . Sneak Attacks . | . . Combat Hostiles . | . . Follow-up Attacks . | . . Damage Inflicted 813 | 284 529 Guns 566 | 284 282 Cannons 43 | . 43 Explosions 204 | . 204 Melee . | . . Ramming . | . . Kinetic 283 | 134 149 Thermal 326 | 150 176 Explosive 204 | . 204 Electromagnetic . | . . Impact . | . . Slashing . | . . Piercing . | . . Highest Corruption . | . . Average Corruption . | . . Corruption Purged . | . . Corruption Blocked . | . . Overload Shots . | . . Overflow Damage . | . . Projectiles . | . . Explosions . | . . Melee . | . . Knockbacks 1 | . 1 Impact . | . . Kinetic 1 | . 1 Secondary . | . . Self-Inflicted Damage . | . . Shots . | . . Rammed . | . . Targets Rammed . | . . Kicked . | . . Crushed . | . . Highest Temperature 256 | 170 256 Average Temperature 95 | 61 121 Received Heat Transfer 168 | . 168 Siege Activations . | . . Robots Corrupted . | . . Combat Hostiles . | . . Parts Fried . | . . Impact Corruptions . | . . Robots Melted . | . . Combat Hostiles . | . . Parts Melted 3 | 2 1 Heat Transferred 1036 | 518 518 Parts Sabotaged . | . . Parts Stolen . | . . Parts Stripped . | . . Power Chain Reactions . | . . Alert | -11 -10 ------- Run | Yrd Mat Peak Influence 135 | 30 135 Initial 19 | . 19 Average 46 | 10 71 Maximum Alert Level . | . . Low Security (%) 100 | 100 100 Level 1 . | . . Level 2 . | . . Level 3 . | . . Level 4 . | . . Level 5 . | . . High Security . | . . Max Security . | . . Squads Dispatched . | . . Investigation . | . . Extermination . | . . Reinforcement . | . . Assault . | . . Garrison . | . . Intercept . | . . Searches Triggered . | . . Construction Impeded . | . . Haulers Reinforced . | . . Active Scanning Responses . | . . Cargo Convoy Interrupts . | . . Stealth | -11 -10 --------- Run | Yrd Mat Distress Signals . | . . Communications Jammed . | . . Distress Signals . | . . Times Spotted 4 | . 4 Peak Tracking Total 2 | . 2 Tactical Retreats . | . . Traps | -11 -10 ------- Run | Yrd Mat Traps Triggered . | . . Indirectly . | . . Trap Hack Attempts . | . . Triggered . | . . Disarmed . | . . Reprogrammed . | . . Reused . | . . Traps Extracted . | . . Installed . | . . Triggered . | . . Machines | -11 -10 ---------- Run | Yrd Mat Machines Disabled . | . . Max in Single Turn . | . . Machines Repaired . | . . Machines Dismantled . | . . Machines Sabotaged . | . . Overloaded Fab Kills . | . . Hacking | -11 -10 --------- Run | Yrd Mat Machines Accessed . | . . Terminals . | . . Fabricators . | . . Repair Stations . | . . Recycling Units . | . . Scanalyzers . | . . Garrison Access . | . . Total Hacks . | . . Successful . | . . Failed . | . . Catastrophic . | . . Database Lockouts . | . . Manual . | . . Terminals . | . . Fabricators . | . . Repair Stations . | . . Recycling Units . | . . Scanalyzers . | . . Garrison Access . | . . Terminal Hacks . | . . Fabricator Hacks . | . . Repair Station Hacks . | . . Recycling Unit Hacks . | . . Scanalyzer . | . . Garrison Access Hacks . | . . Unauthorized Hacks . | . . Terminals . | . . Fabricators . | . . Repair Stations . | . . Recycling Units . | . . Scanalyzers . | . . Garrison Access . | . . Data Cores Recovered . | . . Used . | . . Hacking Detections . | . . Full Trace Events . | . . Feedback Events . | . . Feedback Blocked . | . . Robot Schematics Acquired . | . . Robots Built . | . . Authchips . | . . Time . | . . Total Robot Build Rating . | . . Part Schematics Acquired . | . . Parts Built . | . . Authchips . | . . Time . | . . Total Part Build Rating . | . . Parts Repaired . | . . Time . | . . Parts Recycled . | . . Recycled Matter . | . . Retrieved Matter . | . . Retrieved Components . | . . Parts Scanalyzed . | . . Part Schematics Acquired . | . . Parts Damaged . | . . Bothacking | -11 -10 ------------ Run | Yrd Mat Used RIF Installer . | . . Robots Hacked . | . . Non-combat . | . . Combat . | . . Robot Hacks Applied . | . . Relay Couplers Released . | . . Fabnet Peak Effective % . | . . Robots Rewired . | . . Allies Hacked . | . . Hacks Repelled . | . . Allies | -11 -10 -------- Run | Yrd Mat Total Allies . | . . Largest Group . | . . Highest-Rated Group . | . . Highest-Rated Ally . | . . Total Orders . | . . Ally Attacks . | . . Total Damage . | . . Kills . | . . Allies Corrupted . | . . Allies Melted . | . . Intel | -11 -10 ------- Run | Yrd Mat Robot Analysis Total . | . . Derelict Logs Recovered . | . . Drone Launches . | . . Drone Recoveries . | . . Exploration | -11 -10 ------------- Run | Yrd Mat Turns Passed 291 | 121 170 Spaces Moved 123 | 47 76 Core 5 | 5 . Treads . | . . Legs 118 | 42 76 Wheels . | . . Hover . | . . Flight . | . . Fastest Speed 50 | 50 120 Average Speed 117 | 112 120 Slowest Speed 120 | 120 120 Overloaded Moves . | . . Propulsion Burnouts . | . . Robots Hopped . | . . Cave-ins Triggered 1 | . 1 Exploration Rate (%) 10 | 4 16 Regions Visited 1 Branch Regions . Pre-discovered Areas . | . . Known Exits Taken . | . . Unknown Exits Taken 1 | 1 . Scrap Searched . | . . Spaces Dug 1 | . 1 Terrain Destroyed 21 | . 21 Melee . | . . Projectile 2 | . 2 AOE 19 | . 19 Terrain Rammed . | . . Walls Destroyed . | . . Machines Disabled . | . . Actions | -11 -10 --------- Run | Yrd Mat Total 185 | 74 111 Wait . | . . Move 122 | 46 76 Hop . | . . Pick Up 4 | . 4 Fast Attach 8 | 7 1 Attach . | . . Detach 1 | . 1 Swap 3 | . 3 Drop . | . . Fire 47 | 21 26 Melee . | . . Ram . | . . Kick . | . . Crush . | . . Escape Stasis . | . . Rewire . | . . Trap . | . . Miscellaneous . | . . Route ------- -11/Scrapyard -10/Materials History --------- Turn | Location | Event 9 | -11/Scrapyard | Discovered new exit (range 16) 122 | -11/Scrapyard | Entered Materials 225 | -10/Materials | Core integrity fell below 50% 293 | -10/Materials | Crushed by falling debris 293 | -10/Materials | Smashed by cave-in Last Messages --------------- 00263_ R-06 Scavenger inserts Particle Gun into recycling unit. 00264_ K-01 Serf collects debris. 00266_ R-06 Scavenger inserts Sml. Laser into recycling unit. 00267_ K-01 Serf collects debris. 00269_ R-06 Scavenger inserts Wheel into recycling unit. 00272_ K-01 Serf collects debris. 00272_ R-06 Scavenger inserts Wheel into recycling unit. 00275_ R-06 Scavenger collects Wheel. 00276_ The unstable cave ceiling collapses. 00276_ K-01 Serf collects debris. 00278_ U-05 Engineer builds a Wall. 00278_ R-06 Scavenger inserts Wheel into recycling unit. 00282_ U-05 Engineer builds a Wall. 00293_ The unstable cave ceiling collapses. 00293_ Crushed by falling debris. Map ----- +----------------------------------------------------+ | | | | | ????????????????????????????#?????########???????? | | ??????????????????????????????????# #???????? | | ??????????????????????????????????# #???????? | | ??????????????????????????????????# !! #???????? | | ????????????????????????????#?????# !! !#???????? | | ??????????????????????????????????# #???????? | | ??????????????????????????????????# +???????? | | ??????????????????????????????##### ""#???????? | | ??????????????????????????##### # Y"#???????? | | ??????????????????????????#!! # ""#???????? | | ??????????????????????????# # #???????? | | ??????????????????????????#!! ###+##########?? | | ??????????????????????????#!! % | | ????????????????????? ????#] #######?? | | ??????????????????????????#]] #???????? | | ??????????????????????????######+##### #???????? | | ???????????????? ? ????????# # ###?????? | | ???????????????????????????# # # ##????? | | ???????????????????????????# #####" | | ???????????????????????????# # | | ???????????????????????????# | | ???????? ######## | | | ???????? ^ + # #= "Y"### | | ???????? #####@## # =% """#?? | | ????????????????????????############## =! #####?? | | ?????????????????????????????????????### = ##????? | | ???????????????????????????????????????# % #?????? | | ???????????????????????????????????????# #?????? | | ???????????????????????????????????????# #?????? | | ???????????????????????????????????????# #?????? | | ???????????????????????????????????????# ?????? | | ???????????????????????????????????????# ????? | | ???????????????????????????????????????# ???? | | ???????????????????????????????????????# ??? | | ???????????????????????????????????????# #?? | | ???????????????????????????????????????# #?? | | ???????????????????????????????????????# #?? | | ???????????????????????????????????????# #?? | | ???????????????????????????????????????# #?? | | ???????????????????????????????????????# #?? | | ???????????????????????????????????????? ### #?? | | ???????????????????????????????????????? #?? #?? | | ???????????????????????????????????????? ??????? | | ???????????????????????????????????????? ??????? | | ?????????????????????????????????????????????????? | | ?????????????????????????????????????????????????? | | ?????????????????????????????????????????????????? | | ?????????????????????????????????????????????????? | +----------------------------------------------------+ Best States ------------- Heat Dissipation 25 Energy Generation 10 Energy Capacity 125 Matter Stores 300 Matter Capacity 300 Sight Range 18 Terrain Scan Range 16 Terrain Scan Density 10 Evasion (%) 55 Item Schematics ----------------- None Robot Schematics ------------------ None Fabricated ------------ Nothing Alien Tech Used ----------------- None Achievements -------------- None Challenges ------------ None Game ------ Seed TachyonNuclearFlail Manual? 0 Play Time 00:03:08 Cumulative 36.6 hours Start 2024.10.18 @ 21:00:14 End 2024.10.18 @ 21:02:08 Sessions 1 Manual Loads 0 Difficulty Rogue Special Mode None Game No. 79 Rogue 38 Adventurer 41 Explorer 0 Win Type - Total 1 Types 1/0/0/0/0/0/0/0/0 Lore% 30 Gallery% 40 Achievement% 44 Wizard Run 0 Options --------- Layout 2 ASCII 0 Keyboard 0 Movement Arrows Keybinds 0 Fullscreen 2 Font 24/Crisp Map View 50x44 Zoom Use 0% Tactical HUD 1 Map Filters NONE Filters NONE Steam 1 RUN: 3ccaf66f-d2d8-4157-9cb3-41c74f2f954b